fUST/lending_fUST_20241216
["ID","MTS","AMOUNT","RATE_DAILY","PERIOD"]
[345504707,1734304245841,-2432.0884309,0.0002739,7]
[345504709,1734304245851,-26036.58297559,0.00027396,5]
[345504711,1734304245859,-500.0,0.00027397,7]
[345504713,1734304245869,-500.0,0.00027397,7]
[345504715,1734304245879,-500.0,0.00027397,7]
[345504717,1734304245888,-500.0,0.00027397,7]
[345504719,1734304245898,-500.0,0.00027397,7]
[345504721,1734304245908,-500.0,0.00027397,7]
[345504723,1734304245918,-500.0,0.00027397,7]
[345504725,1734304245927,-504.99282886,0.00027397,7]
[345504727,1734304245936,-500.0,0.00027397,7]
[345504729,1734304245945,-529.04182459,0.00027397,7]
[345504731,1734304245955,-514.95396094,0.00027397,7]
[345504733,1734304245964,-500.0,0.00027397,7]
[345504735,1734304245974,-500.0,0.00027397,7]
[345504737,1734304245984,-500.0,0.00027397,7]
[345504739,1734304245994,-562.85,0.00027397,7]
[345504741,1734304246003,-500.0,0.00027397,7]
[345504743,1734304246014,-500.0,0.00027397,7]
[345504745,1734304246023,-500.0,0.00027397,7]
[345504747,1734304246033,-500.0,0.00027397,7]
[345504749,1734304246042,-500.0,0.00027397,7]
[345504751,1734304246052,-500.0,0.00027397,7]
[345504753,1734304246061,-500.0,0.00027397,7]
[345504755,1734304246071,-500.0,0.00027397,7]
[345504758,1734304246081,-500.0,0.00027397,7]
[345504760,1734304246090,-500.0,0.00027397,7]
[345504762,1734304246100,-500.0,0.00027397,7]
[345504764,1734304246110,-500.0,0.00027397,7]
[345504766,1734304246119,-508.6014023,0.00027397,7]
[345504768,1734304246128,-500.0,0.00027397,7]
[345504770,1734304246138,-500.0,0.00027397,7]
[345504772,1734304246147,-500.0,0.00027397,7]
[345504774,1734304246156,-500.0,0.00027397,7]
[345504776,1734304246165,-591.8698189,0.00027397,7]
[345504778,1734304246174,-383.17580561,0.00027397,7]
[345504780,1734304246184,-500.0,0.00027397,7]
[345504782,1734304246194,-500.0,0.00027397,7]
[345504784,1734304246204,-500.0,0.00027397,7]
[345504786,1734304246213,-500.0,0.00027397,7]
[345504788,1734304246228,-500.0,0.00027397,7]
[345504790,1734304246237,-500.0,0.00027397,7]
[345504792,1734304246247,-500.0,0.00027397,7]
[345504794,1734304246259,-500.0,0.00027397,7]
[345504796,1734304246270,-513.43742654,0.00027397,7]
[345504798,1734304246280,-500.0,0.00027397,7]
[345504800,1734304246289,-500.0,0.00027397,7]
[345504802,1734304246299,-500.0,0.00027397,7]
[345504804,1734304246309,-500.0,0.00027397,7]
[345504806,1734304246319,-551.45619552,0.00027397,7]
[345504808,1734304246328,-500.0,0.00027397,7]
[345504810,1734304246338,-500.0,0.00027397,7]
[345504812,1734304246348,-500.0,0.00027397,7]
[345504814,1734304246357,-500.0,0.00027397,7]
[345504816,1734304246367,-500.0,0.00027397,7]
[345504818,1734304246377,-500.0,0.00027397,7]
[345504820,1734304246387,-500.0,0.00027397,7]
[345504822,1734304246396,-165.22145526,0.00027397,7]
[345504824,1734304246406,-500.0,0.00027397,7]
[345504835,1734304246507,-500.0,0.00027397,7]
[345504837,1734304246518,-500.0,0.00027397,7]
[345504839,1734304246528,-500.0,0.00027397,7]
[345504841,1734304246538,-500.0,0.00027397,7]
[345504844,1734304246547,-500.0,0.00027397,7]
[345504846,1734304246557,-500.0,0.00027397,7]
[345504848,1734304246566,-502.80374805,0.00027397,7]
[345504850,1734304246575,-500.0,0.00027397,7]
[345504851,1734304246586,-500.0,0.00027397,7]
[345504854,1734304246596,-500.0,0.00027397,7]
[345504856,1734304246606,-500.0,0.00027397,7]
[345504858,1734304246616,-503.27311249,0.00027397,7]
[345504860,1734304246626,-512.04729042,0.00027397,7]
[345504862,1734304246635,-500.0,0.00027397,7]
[345504864,1734304246644,-500.0,0.00027397,7]
[345504866,1734304246654,-4699.83,0.00027397,7]
[345504868,1734304246663,-500.0,0.00027397,7]
[345504870,1734304246672,-196.65833801,0.00027397,7]
[345504878,1734304246752,-358.7973002,0.00027397,7]
[345504880,1734304246762,-642.56,0.00027397,7]
[345504883,1734304246772,-500.0,0.00027397,7]
[345504885,1734304246781,-500.0,0.00027397,7]
[345504887,1734304246790,-500.0,0.00027397,7]
[345504888,1734304246800,-500.0,0.00027397,7]
[345504891,1734304246809,-254.14968914,0.00027397,7]
[345504893,1734304246819,-559.43,0.00027397,7]
[345504895,1734304246829,-500.0,0.00027397,7]
[345504897,1734304246838,-483.38324623,0.00027397,7]
[345504899,1734304246848,-500.0,0.00027397,7]
[345504901,1734304246857,-643.97,0.00027397,7]
[345504903,1734304246866,-500.06626625,0.00027397,7]
[345504904,1734304246876,-500.0,0.00027397,7]
[345504906,1734304246885,-500.0,0.00027397,7]
[345504907,1734304246894,-293.20367228,0.00027397,7]
[345504908,1734304246904,-500.0,0.00027397,7]
[345504909,1734304246913,-337.72605936,0.00027397,7]
[345504910,1734304246923,-500.0,0.00027397,7]
[345504911,1734304246933,-536.80674944,0.00027397,7]
[345504912,1734304246943,-500.0,0.00027397,7]
[345504913,1734304246952,-500.0,0.00027397,7]
[345504914,1734304246962,-500.0,0.00027397,7]
[345504915,1734304246972,-500.0,0.00027397,7]
[345504917,1734304246985,-504.17,0.00027397,7]
[345504919,1734304246995,-500.0,0.00027397,7]
[345504921,1734304247004,-500.0,0.00027397,7]
[345504923,1734304247013,-500.0,0.00027397,7]
[345504925,1734304247023,-500.0,0.00027397,7]
[345504927,1734304247031,-500.0,0.00027397,7]
[345504929,1734304247040,-247.17495148,0.00027397,7]
[345504931,1734304247049,-500.0,0.00027397,7]
[345504933,1734304247058,-523.7133627,0.00027397,7]
[345504934,1734304247067,-500.0,0.00027397,7]
[345504936,1734304247076,-500.0,0.00027397,7]
[345504938,1734304247085,-1135.11,0.00027397,7]
[345504940,1734304247094,-500.0,0.00027397,7]
[345504942,1734304247104,-283.63131913,0.00027397,7]
[345504944,1734304247113,-529.51682103,0.00027397,7]
[345504946,1734304247122,-542.63,0.00027397,7]
[345504948,1734304247132,-5806.35,0.00027397,2]
[345504950,1734304247141,-500.0,0.00027397,7]
[345504952,1734304247150,-457.62354678,0.00027397,7]
[345504954,1734304247159,-3000.0,0.000274,2]
[345504956,1734304247169,-4712.950109,0.0002741,2]
[345504958,1734304247178,-655.44258679,0.00027537,2]
[345504960,1734304247188,-399.295528,0.00027659,2]
[345504962,1734304247197,-500.0,0.0002767,7]
[345504964,1734304247206,-500.0,0.00027671,7]
[345504966,1734304247216,-562.85,0.00027671,7]
[345504968,1734304247231,-577.04018598,0.00027671,7]
[345504970,1734304247240,-500.0,0.00027671,7]
[345504972,1734304247249,-500.0,0.00027671,7]
[345504974,1734304247260,-500.0,0.00027671,7]
[345504976,1734304247269,-500.0,0.00027671,7]
[345504978,1734304247279,-267.53620433,0.00027671,7]
[345504980,1734304247288,-500.0,0.00027671,7]
[345504982,1734304247297,-500.0,0.00027671,7]
[345504984,1734304247306,-4699.83,0.00027671,7]
[345504986,1734304247315,-642.56,0.00027671,7]
[345504988,1734304247324,-500.0,0.00027671,7]
[345504989,1734304247333,-500.0,0.00027671,7]
[345504991,1734304247343,-643.97,0.00027671,7]
[345504993,1734304247354,-500.0,0.00027671,7]
[345504995,1734304247364,-500.0,0.00027671,7]
[345504997,1734304247374,-504.17,0.00027671,7]
[345504999,1734304247384,-500.0,0.00027671,7]
[345505001,1734304247394,-500.0,0.00027671,7]
[345505003,1734304247405,-1135.11,0.00027671,7]
[345505005,1734304247414,-5806.35,0.00027671,2]
[345505007,1734304247423,-500.0,0.00027671,7]
[345505009,1734304247435,-587.0,0.00027702,2]
[345505011,1734304247448,-500.0,0.00027944,7]
[345505013,1734304247458,-562.85,0.00027945,7]
[345505015,1734304247468,-500.0,0.00027945,7]
[345505017,1734304247484,-500.0,0.00027945,7]
[345505019,1734304247494,-500.0,0.00027945,7]
[345505020,1734304247503,-500.0,0.00027945,7]
[345505022,1734304247512,-176.64954307,0.00027945,7]
[345505024,1734304247521,-500.0,0.00027945,7]
[345505026,1734304247531,-4699.83,0.00027945,7]
[345505028,1734304247540,-642.56,0.00027945,7]
[345505031,1734304247550,-500.0,0.00027945,7]
[345505032,1734304247559,-643.97,0.00027945,7]
[345505034,1734304247569,-500.0,0.00027945,7]
[345505037,1734304247578,-506.82050598,0.00027945,7]
[345505039,1734304247588,-504.17,0.00027945,7]
[345505041,1734304247597,-500.0,0.00027945,7]
[345505043,1734304247608,-500.0,0.00027945,7]
[345505045,1734304247617,-1135.11,0.00027945,7]
[345505047,1734304247627,-5806.35,0.00027945,2]
[345505049,1734304247636,-500.0,0.00027945,7]
[345505051,1734304247646,-151.0,0.000281,13]
[345505053,1734304247655,-427.0708056,0.00028214,4]
[345505055,1734304247665,-500.0,0.00028217,2]
[345505057,1734304247674,-500.0,0.00028217,2]
[345505059,1734304247684,-500.0,0.00028217,2]
[345505061,1734304247693,-500.0,0.00028217,2]
[345505063,1734304247702,-500.0,0.00028217,2]
[345505065,1734304247712,-500.0,0.00028217,2]
[345505067,1734304247722,-500.0,0.00028217,2]
[345505069,1734304247737,-500.0,0.00028217,2]
[345505071,1734304247746,-500.0,0.00028217,2]
[345505073,1734304247755,-500.0,0.00028217,2]
[345505075,1734304247765,-500.0,0.00028217,2]
[345505077,1734304247774,-500.0,0.00028217,2]
[345505079,1734304247783,-585.56903727,0.00028217,2]
[345505081,1734304247792,-500.0,0.00028217,2]
[345505083,1734304247801,-500.0,0.00028217,2]
[345505085,1734304247810,-500.0,0.00028217,2]
[345505087,1734304247819,-500.0,0.00028217,2]
[345505089,1734304247828,-500.0,0.00028217,2]
[345505091,1734304247837,-500.0,0.00028217,2]
[345505093,1734304247847,-500.0,0.00028217,2]
[345505095,1734304247856,-500.0,0.00028217,2]
[345505097,1734304247865,-500.0,0.00028217,2]
[345505099,1734304247875,-500.0,0.00028217,2]
[345505101,1734304247885,-500.0,0.00028217,2]
[345505103,1734304247894,-500.0,0.00028217,2]
[345505105,1734304247903,-500.0,0.00028217,2]
[345505107,1734304247913,-500.0,0.00028217,2]
[345505109,1734304247922,-500.0,0.00028217,2]
[345505111,1734304247932,-319.69087524,0.00028217,2]
[345505113,1734304247941,-500.0,0.00028217,2]
[345505115,1734304247950,-500.0,0.00028217,2]
[345505117,1734304247959,-500.0,0.00028217,2]
[345505119,1734304247968,-500.0,0.00028217,2]
[345505121,1734304247981,-500.0,0.00028217,2]
[345505123,1734304247990,-500.0,0.00028217,2]
[345505125,1734304247999,-500.0,0.00028217,2]
[345505127,1734304248008,-500.0,0.00028217,2]
[345505129,1734304248017,-500.0,0.00028217,2]
[345505131,1734304248027,-500.0,0.00028217,2]
[345505133,1734304248036,-500.0,0.00028217,2]
[345505135,1734304248045,-500.0,0.00028217,2]
[345505137,1734304248054,-500.0,0.00028217,2]
[345505139,1734304248064,-500.0,0.00028217,2]
[345505141,1734304248073,-500.0,0.00028217,2]
[345505143,1734304248083,-500.0,0.00028217,2]
[345505145,1734304248092,-500.0,0.00028217,2]
[345505147,1734304248101,-500.0,0.00028217,2]
[345505149,1734304248110,-500.0,0.00028217,2]
[345505151,1734304248120,-500.0,0.00028217,2]
[345505153,1734304248129,-500.0,0.00028217,2]
[345505155,1734304248139,-500.0,0.00028217,2]
[345505157,1734304248149,-500.0,0.00028217,2]
[345505159,1734304248159,-500.0,0.00028217,2]
[345505161,1734304248169,-500.0,0.00028217,2]
[345505163,1734304248178,-500.0,0.00028217,2]
[345505165,1734304248188,-500.0,0.00028217,2]
[345505167,1734304248197,-500.0,0.00028217,2]
[345505169,1734304248210,-500.0,0.00028217,2]
[345505171,1734304248220,-500.0,0.00028217,2]
[345505173,1734304248236,-500.0,0.00028217,2]
[345505175,1734304248246,-633.49313,0.00028217,2]
[345505177,1734304248256,-500.0,0.00028217,2]
[345505179,1734304248265,-500.0,0.00028217,2]
[345505181,1734304248275,-500.0,0.00028217,2]
[345505183,1734304248284,-500.0,0.00028217,2]
[345505185,1734304248293,-350.0,0.00028217,2]
[345505187,1734304248303,-500.0,0.00028217,2]
[345505189,1734304248312,-500.0,0.00028217,2]
[345505191,1734304248322,-500.0,0.00028217,2]
[345505193,1734304248332,-500.0,0.00028217,2]
[345505195,1734304248342,-562.85,0.00028219,7]
[345505197,1734304248351,-500.0,0.00028219,7]
[345505199,1734304248360,-500.0,0.00028219,7]
[345505201,1734304248369,-500.0,0.00028219,7]
[345505203,1734304248379,-500.0,0.00028219,7]
[345505205,1734304248390,-456.96,0.00028219,7]
[345505207,1734304248399,-4699.83,0.00028219,7]
[345505209,1734304248408,-642.56,0.00028219,7]
[345505211,1734304248417,-500.0,0.00028219,7]
[345505213,1734304248427,-643.97,0.00028219,7]
[345505215,1734304248439,-500.0,0.00028219,7]
[345505217,1734304248448,-504.17,0.00028219,7]
[345505219,1734304248458,-500.0,0.00028219,7]
[345505221,1734304248467,-500.0,0.00028219,7]
[345505223,1734304248485,-1135.11,0.00028219,7]
[345505225,1734304248495,-5806.35,0.00028219,2]
[345505227,1734304248504,-163.29,0.00028219,7]
[345505229,1734304248514,-264.0,0.0002823,24]
[345505231,1734304248525,-500.0,0.00028373,5]
[345505233,1734304248535,-30635.19895684,0.00028393,3]
[345505235,1734304248545,-151.0,0.00028393,7]
[345505237,1734304248555,-238.887874,0.00028393,7]
[345505239,1734304248565,-238.887874,0.00028393,7]
[345505241,1734304248574,-666.0,0.000284,2]
[345505243,1734304248584,-152.91,0.000284,31]
[345505245,1734304248595,-152.91,0.000284,31]
[345505247,1734304248604,-152.91,0.000284,31]
[345505249,1734304248614,-152.91,0.000284,31]
[345505251,1734304248624,-152.91,0.000284,31]
[345505253,1734304248633,-152.91,0.000284,31]
[345505255,1734304248642,-152.91,0.000284,31]
[345505257,1734304248652,-152.91,0.000284,31]
[345505259,1734304248662,-152.91,0.000284,31]
[345505261,1734304248672,-152.91,0.000284,31]
[345505263,1734304248681,-151.0,0.000284,7]
[345505265,1734304248691,-526.594918,0.000284,7]
[345505267,1734304248700,-526.594918,0.000284,7]
[345505277,1734304248790,-151.0,0.000284,7]
[345505279,1734304248800,-151.0,0.000284,7]
[345505281,1734304248810,-306.77821,0.000284,7]
[345505283,1734304248820,-306.77821,0.000284,7]
[345505285,1734304248830,-151.0,0.000284,7]
[345505287,1734304248839,-833.0,0.00028455,15]
[345505289,1734304248850,-587.0,0.00028475,2]
[345505291,1734304248859,-562.85,0.00028493,7]
[345505293,1734304248869,-500.0,0.00028493,7]
[345505294,1734304248878,-500.0,0.00028493,7]
[345505295,1734304248889,-500.0,0.00028493,7]
[345505296,1734304248899,-4699.83,0.00028493,7]
[345505297,1734304248908,-642.56,0.00028493,7]
[345505298,1734304248918,-500.0,0.00028493,7]
[345505299,1734304248927,-643.97,0.00028493,7]
[345505300,1734304248937,-500.0,0.00028493,7]
[345505301,1734304248947,-504.17,0.00028493,7]
[345505302,1734304248956,-500.0,0.00028493,7]
[345505303,1734304248966,-500.0,0.00028493,7]
[345505305,1734304248979,-1135.11,0.00028493,7]
[345505307,1734304248988,-5806.35,0.00028493,2]
[345505309,1734304248997,-801.6466974,0.00028498,2]
[345505311,1734304249007,-31156.40499988,0.00028499,2]
[345505313,1734304249016,-38703.30205897,0.00028499,2]
[345505315,1734304249026,-151.0,0.00028499,7]
[345505317,1734304249036,-152.550249,0.00028499,7]
[345505319,1734304249046,-500.0,0.00028499,7]
[345505321,1734304249056,-500.0,0.00028499,10]
[345505323,1734304249065,-817.325923,0.00028499,7]
[345505325,1734304249076,-817.325923,0.00028499,7]
[345505327,1734304249085,-151.0,0.00028499,7]
[345505329,1734304249095,-151.0,0.00028499,7]
[345505331,1734304249105,-344.864507,0.00028499,7]
[345505333,1734304249114,-344.864507,0.00028499,7]
[345505335,1734304249123,-1555.59794542,0.000285,7]
[345505337,1734304249132,-136273.25385239,0.000285,2]
[345505340,1734304249143,-31764.53823741,0.000285,2]
[345505342,1734304249153,-860.01,0.000285,2]
[345505344,1734304249162,-218.58253566,0.000285,10]
[345505346,1734304249172,-151.0,0.000285,7]
[345505348,1734304249182,-151.0,0.000285,7]
[345505349,1734304249191,-151.0,0.000285,7]
[345505352,1734304249201,-193.449012,0.000285,7]
[345505353,1734304249211,-151.0,0.000285,7]
[345505355,1734304249221,-151.0,0.000285,7]
[345505357,1734304249233,-300.0,0.000285,13]
[345505359,1734304249243,-500.0,0.000285,7]
[345505362,1734304249254,-817.325923,0.000285,7]
[345505363,1734304249264,-817.325923,0.000285,7]
[345505365,1734304249276,-500.0,0.000285,7]
[345505368,1734304249286,-151.0,0.000285,7]
[345505369,1734304249296,-151.0,0.000285,7]
[345505372,1734304249306,-344.864507,0.000285,7]
[345505373,1734304249315,-344.864507,0.000285,7]
[345505376,1734304249325,-151.0,0.000285,7]
[345505378,1734304249335,-151.0,0.000285,7]
[345505380,1734304249345,-518.403681,0.000285,7]
[345505382,1734304249356,-151.0,0.000285,7]
[345505384,1734304249366,-518.403681,0.000285,7]
[345505386,1734304249375,-281.939154,0.000285,7]
[345505388,1734304249385,-151.39949,0.000285,7]
[345505390,1734304249395,-500.0,0.000285,7]
[345505392,1734304249405,-500.0,0.000285,7]
[345505394,1734304249414,-151.0,0.000285,7]
[345505396,1734304249424,-500.0,0.000285,7]
[345505397,1734304249435,-245.667835,0.000285,7]
[345505400,1734304249447,-151.0,0.000285,16]
[345505402,1734304249456,-151.0,0.000285,7]
[345505403,1734304249466,-526.594918,0.000285,7]
[345505406,1734304249480,-526.594918,0.000285,7]
[345505408,1734304249490,-151.0,0.000285,7]
[345505410,1734304249499,-151.0,0.000285,7]
[345505412,1734304249508,-306.77821,0.000285,7]
[345505414,1734304249519,-306.77821,0.000285,7]
[345505416,1734304249528,-151.0,0.000285,7]
[345505417,1734304249538,-151.0,0.000285,7]
[345505419,1734304249547,-238.887874,0.000285,7]
[345505422,1734304249559,-238.887874,0.000285,7]
[345505424,1734304249568,-500.0,0.000285,30]
[345505426,1734304249577,-500.0,0.000285,30]
[345505428,1734304249586,-500.0,0.000285,30]
[345505430,1734304249596,-500.0,0.000285,30]
[345505432,1734304249606,-500.0,0.000285,30]
[345505434,1734304249615,-500.0,0.000285,30]
[345505436,1734304249625,-500.0,0.000285,30]
[345505438,1734304249635,-500.0,0.000285,30]
[345505440,1734304249644,-500.0,0.000285,30]
[345505442,1734304249654,-500.0,0.000285,30]
[345505444,1734304249664,-500.0,0.000285,30]
[345505446,1734304249673,-500.0,0.000285,30]
[345505448,1734304249683,-500.0,0.000285,30]
[345505450,1734304249693,-500.0,0.000285,30]
[345505452,1734304249702,-500.0,0.000285,30]
[345505454,1734304249712,-500.0,0.000285,30]
[345505456,1734304249721,-500.0,0.000285,30]
[345505458,1734304249733,-500.0,0.000285,30]
[345505460,1734304249743,-500.0,0.000285,30]
[345505462,1734304249752,-500.0,0.000285,30]
[345505463,1734304249761,-500.0,0.000285,30]
[345505465,1734304249771,-500.0,0.000285,30]
[345505467,1734304249780,-500.0,0.000285,30]
[345505469,1734304249789,-500.0,0.000285,30]
[345505471,1734304249798,-500.0,0.000285,30]
[345505473,1734304249808,-500.0,0.000285,30]
[345505475,1734304249817,-5000.0,0.000285,30]
[345505477,1734304249827,-399.295528,0.00028612,2]
[345505480,1734304249836,-184.0,0.00028621,3]
[345505481,1734304249846,-184.0,0.00028621,3]
[345505483,1734304249855,-184.0,0.00028621,3]
[345505485,1734304249864,-184.0,0.00028621,3]
[345505487,1734304249874,-184.0,0.00028621,3]
[345505489,1734304249884,-184.0,0.00028621,3]
[345505491,1734304249893,-184.0,0.00028621,3]
[345505493,1734304249903,-184.0,0.00028621,3]
[345505495,1734304249912,-184.0,0.00028621,3]
[345505497,1734304249922,-184.0,0.00028621,3]
[345505500,1734304249931,-184.0,0.00028621,3]
[345505502,1734304249941,-184.0,0.00028621,3]
[345505504,1734304249950,-184.0,0.00028621,3]
[345505506,1734304249961,-184.0,0.00028621,3]
[345505508,1734304249971,-184.0,0.00028621,3]
[345505510,1734304249985,-184.0,0.00028621,3]
[345505512,1734304249994,-184.0,0.00028621,3]
[345505514,1734304250004,-184.0,0.00028621,3]
[345505516,1734304250014,-184.0,0.00028621,3]
[345505518,1734304250023,-184.0,0.00028621,3]
[345505520,1734304250033,-184.0,0.00028621,3]
[345505522,1734304250042,-184.0,0.00028621,3]
[345505524,1734304250052,-184.0,0.00028621,3]
[345505526,1734304250062,-184.0,0.00028621,3]
[345505528,1734304250071,-184.0,0.00028621,3]
[345505530,1734304250080,-184.0,0.00028621,3]
[345505532,1734304250090,-184.0,0.00028621,3]
[345505534,1734304250099,-184.0,0.00028621,3]
[345505536,1734304250109,-184.0,0.00028621,3]
[345505538,1734304250119,-184.0,0.00028621,3]
[345505540,1734304250129,-184.0,0.00028621,3]
[345505542,1734304250138,-184.0,0.00028621,3]
[345505544,1734304250148,-184.0,0.00028621,3]
[345505546,1734304250158,-184.0,0.00028621,3]
[345505548,1734304250167,-326.0,0.00028621,3]
[345505550,1734304250177,-562.85,0.00028767,7]
[345505552,1734304250187,-500.0,0.00028767,7]
[345505554,1734304250196,-500.0,0.00028767,7]
[345505556,1734304250205,-500.0,0.00028767,7]
[345505558,1734304250214,-4699.83,0.00028767,7]
[345505560,1734304250228,-642.56,0.00028767,7]
[345505562,1734304250238,-500.0,0.00028767,7]
[345505564,1734304250248,-643.97,0.00028767,7]
[345505566,1734304250257,-500.0,0.00028767,7]
[345505568,1734304250268,-504.17,0.00028767,7]
[345505570,1734304250277,-500.0,0.00028767,7]
[345505572,1734304250287,-383.38492097,0.00028767,7]
[345505574,1734304250297,-1135.11,0.00028767,7]
[345505576,1734304250307,-5806.35,0.00028767,2]
[345505578,1734304250317,-612.69735624,0.00028774,7]
[345505580,1734304250326,-251.49127464,0.00028774,7]
[345505582,1734304250336,-500.0,0.00028774,7]
[345505584,1734304250346,-500.0,0.00028774,7]
[345505586,1734304250356,-500.0,0.00028774,7]
[345505588,1734304250365,-500.0,0.00028774,7]
[345505590,1734304250375,-3634.0,0.000288,2]
[345505592,1734304250384,-2374.15480799,0.000288,2]
[345505600,1734304250452,-1259.84519201,0.000288,2]
[345505602,1734304250461,-3634.0,0.000288,2]
[345505604,1734304250470,-282.65480799,0.000288,2]
[345505607,1734304250491,-3351.34519201,0.000288,2]
[345505609,1734304250500,-3634.0,0.000288,2]
[345505611,1734304250510,-3634.0,0.000288,2]
[345505613,1734304250519,-3634.0,0.000288,2]
[345505615,1734304250529,-3634.0,0.000288,2]
[345505617,1734304250539,-3634.0,0.000288,2]
[345505619,1734304250549,-3634.0,0.000288,2]
[345505621,1734304250559,-165.3069744,0.000288,7]
[345505623,1734304250569,-151.0,0.000288,7]
[345505625,1734304250579,-151.0,0.000288,7]
[345505627,1734304250588,-151.0,0.000288,7]
[345505629,1734304250597,-166.66555,0.000288,7]
[345505631,1734304250607,-817.325923,0.000288,7]
[345505633,1734304250617,-817.325923,0.000288,7]
[345505635,1734304250627,-151.0,0.000288,7]
[345505638,1734304250637,-151.0,0.000288,7]
[345505639,1734304250646,-344.864507,0.000288,7]
[345505641,1734304250656,-344.864507,0.000288,7]
[345505644,1734304250666,-199.900747,0.000288,7]
[345505645,1734304250676,-191.91346,0.000288,7]
[345505647,1734304250685,-518.403681,0.000288,7]
[345505649,1734304250695,-151.0,0.000288,7]
[345505650,1734304250704,-518.403681,0.000288,7]
[345505651,1734304250713,-151.0,0.000288,7]
[345505652,1734304250722,-151.0,0.000288,7]
[345505653,1734304250735,-526.594918,0.000288,7]
[345505654,1734304250744,-526.594918,0.000288,7]
[345505655,1734304250753,-151.0,0.000288,7]
[345505663,1734304250848,-151.0,0.000288,7]
[345505665,1734304250859,-306.77821,0.000288,7]
[345505667,1734304250869,-306.77821,0.000288,7]
[345505669,1734304250878,-238.887874,0.000288,7]
[345505671,1734304250888,-238.887874,0.000288,7]
[345505673,1734304250898,-431.0,0.00028969,3]
[345505675,1734304250907,-431.0,0.00028969,3]
[345505677,1734304250916,-431.0,0.00028969,3]
[345505679,1734304250926,-170.06,0.00028969,3]
[345505681,1734304250935,-431.0,0.00028969,3]
[345505683,1734304250945,-431.0,0.00028969,3]
[345505685,1734304250954,-431.0,0.00028969,3]
[345505687,1734304250963,-431.0,0.00028969,3]
[345505689,1734304250974,-431.0,0.00028969,3]
[345505692,1734304250985,-431.0,0.00028969,3]
[345505693,1734304250995,-431.0,0.00028969,3]
[345505695,1734304251004,-431.0,0.00028969,3]
[345505697,1734304251015,-431.0,0.00028969,3]
[345505700,1734304251025,-431.0,0.00028969,3]
[345505702,1734304251036,-431.0,0.00028969,3]
[345505704,1734304251045,-441.0,0.00028969,3]
[345505706,1734304251054,-153.0,0.00028986,30]
[345505708,1734304251064,-865.1378129,0.00029,2]
[345505709,1734304251074,-48004.84253613,0.00029,2]
[345505712,1734304251083,-2862.39626601,0.00029,2]
[345505714,1734304251093,-454.52113773,0.00029,2]
[345505715,1734304251102,-151.0,0.00029,10]
[345505717,1734304251112,-166.0,0.00029005,3]